[Event "GrandPrix_29.05"]
[Site "Chess.com"]
[Date "2020.05.29"]
[Round "5"]
[White "IMTominho"]
[Black "grzechu96"]
[Result "0-1"]
[WhiteElo "2089"]
[BlackElo "2507"]
[TimeControl "600+2"]
[EndTime "11:33:21 PDT"]
[Termination "grzechu96 won on time"]

1. d4 {[%clk 0:10:01.9]} 1... d5 {[%clk 0:10:00.9]} 2. c4 {[%clk 0:10:01.5]}
2... c6 {[%clk 0:10:02.3]} 3. Nf3 {[%clk 0:10:02]} 3... Nf6 {[%clk 0:10:02.6]}
4. Nbd2 {[%clk 0:09:45.8]} 4... Bf5 {[%clk 0:10:02.8]} 5. Nh4 {[%clk 0:09:39.2]}
5... Be4 {[%clk 0:10:03.7]} 6. Qb3 {[%clk 0:08:55.8]} 6... Qc7 {[%clk
0:09:01.2]} 7. Nxe4 {[%clk 0:08:15.5]} 7... Nxe4 {[%clk 0:08:46.7]} 8. Nf3
{[%clk 0:07:52.1]} 8... e6 {[%clk 0:08:34.8]} 9. Nd2 {[%clk 0:07:51.1]} 9...
Nxd2 {[%clk 0:07:51.6]} 10. Bxd2 {[%clk 0:07:53]} 10... Nd7 {[%clk 0:07:45.7]}
11. e3 {[%clk 0:07:43.1]} 11... Be7 {[%clk 0:07:39.5]} 12. Be2 {[%clk
0:07:42.7]} 12... O-O {[%clk 0:07:40]} 13. O-O {[%clk 0:07:28]} 13... dxc4
{[%clk 0:07:18.1]} 14. Qxc4 {[%clk 0:07:18.5]} 14... e5 {[%clk 0:07:19.4]} 15.
dxe5 {[%clk 0:06:53.6]} 15... Nxe5 {[%clk 0:07:18.7]} 16. Qc2 {[%clk 0:06:50.3]}
16... Rad8 {[%clk 0:07:06.2]} 17. Rfd1 {[%clk 0:06:44.4]} 17... Bf6 {[%clk
0:06:21]} 18. h3 {[%clk 0:06:33.4]} 18... Ng6 {[%clk 0:05:22.1]} 19. Rac1 {[%clk
0:06:19.9]} 19... Ne7 {[%clk 0:05:19.8]} 20. Bc4 {[%clk 0:06:09.7]} 20... Qb6
{[%clk 0:04:54.5]} 21. b4 {[%clk 0:05:47.5]} 21... Ng6 {[%clk 0:04:51]} 22. a4
{[%clk 0:05:29.1]} 22... Ne5 {[%clk 0:04:50.9]} 23. Be2 {[%clk 0:05:28]} 23...
a6 {[%clk 0:04:51.1]} 24. Rb1 {[%clk 0:04:33.6]} 24... Rd7 {[%clk 0:04:13.8]}
25. Bc3 {[%clk 0:04:20.4]} 25... Rxd1+ {[%clk 0:04:12.7]} 26. Rxd1 {[%clk
0:04:03.2]} 26... Rd8 {[%clk 0:04:13.8]} 27. Rb1 {[%clk 0:04:04.5]} 27... Nd7
{[%clk 0:04:12.7]} 28. Bd2 {[%clk 0:04:01.1]} 28... g6 {[%clk 0:03:53.5]} 29.
Kh1 {[%clk 0:03:49.4]} 29... Qc7 {[%clk 0:03:30]} 30. f4 {[%clk 0:02:30]} 30...
Nf8 {[%clk 0:03:25.9]} 31. Bc4 {[%clk 0:02:19.1]} 31... Qd6 {[%clk 0:03:26.6]}
32. Be1 {[%clk 0:02:13]} 32... Ne6 {[%clk 0:03:25.5]} 33. b5 {[%clk 0:02:10.2]}
33... axb5 {[%clk 0:03:25.6]} 34. axb5 {[%clk 0:02:12.1]} 34... cxb5 {[%clk
0:01:45.3]} 35. Bxb5 {[%clk 0:02:14]} 35... b6 {[%clk 0:01:40.2]} 36. Bc4 {[%clk
0:02:01.9]} 36... Qc7 {[%clk 0:01:15.1]} 37. Qa2 {[%clk 0:01:53.9]} 37... Nc5
{[%clk 0:01:06.8]} 38. Bb4 {[%clk 0:01:20.6]} 38... Ne4 {[%clk 0:00:35.7]} 39.
Kh2 {[%clk 0:01:15.4]} 39... Nc3 {[%clk 0:00:14.9]} 40. Bxc3 {[%clk 0:01:10.2]}
40... Bxc3 {[%clk 0:00:16.8]} 41. Qb3 {[%clk 0:01:05]} 41... Bd2 {[%clk
0:00:04.5]} 42. Rd1 {[%clk 0:00:57.8]} 42... Rd7 {[%clk 0:00:04.9]} 43. Kh1
{[%clk 0:00:54.5]} 43... Kg7 {[%clk 0:00:05.2]} 44. Qb2+ {[%clk 0:00:43.5]}
44... Kg8 {[%clk 0:00:06.2]} 45. Bb5 {[%clk 0:00:44]} 45... Bc3 {[%clk
0:00:03.9]} 46. Rxd7 {[%clk 0:00:18.9]} 46... Qxd7 {[%clk 0:00:05.1]} 47. Qb3
{[%clk 0:00:18.4]} 47... Qc7 {[%clk 0:00:04.4]} 48. Qd5 {[%clk 0:00:18.5]} 48...
Bb4 {[%clk 0:00:04.9]} 49. Qf3 {[%clk 0:00:03.4]} 49... Bc5 {[%clk 0:00:06]} 50.
e4 {[%clk 0:00:04.3]} 50... Qd6 {[%clk 0:00:06.1]} 51. e5 {[%clk 0:00:05.2]}
51... Qd4 {[%clk 0:00:07.6]} 52. Kh2 {[%clk 0:00:06.2]} 52... Qg1+ {[%clk
0:00:07.8]} 53. Kg3 {[%clk 0:00:07.6]} 53... Qe1+ {[%clk 0:00:06]} 0-1

[Event "GrandPrix_29.05"]
[Site "Chess.com"]
[Date "2020.05.29"]
[Round "5"]
[White "EvgenyRomanov"]
[Black "Carpe7Diem"]
[Result "1/2-1/2"]
[WhiteElo "1953"]
[BlackElo "2078"]
[TimeControl "600+2"]
[EndTime "11:33:21 PDT"]
[Termination "Game drawn by repetition"]

1. b3 {[%clk 0:09:38]} 1... b6 {[%clk 0:09:54.5]} 2. Bb2 {[%clk 0:09:33.8]} 2...
Bb7 {[%clk 0:09:54.3]} 3. e3 {[%clk 0:09:35]} 3... Nf6 {[%clk 0:09:48.1]} 4. Nf3
{[%clk 0:09:27.8]} 4... g6 {[%clk 0:09:47.6]} 5. d4 {[%clk 0:09:27.1]} 5... Bg7
{[%clk 0:09:45.7]} 6. Bd3 {[%clk 0:09:25.6]} 6... O-O {[%clk 0:09:44.3]} 7. O-O
{[%clk 0:09:21.7]} 7... d5 {[%clk 0:09:42.7]} 8. c4 {[%clk 0:09:16.7]} 8... Ne4
{[%clk 0:09:17.1]} 9. cxd5 {[%clk 0:09:01.2]} 9... Bxd5 {[%clk 0:09:16.6]} 10.
Qc2 {[%clk 0:08:40.8]} 10... f5 {[%clk 0:09:03.5]} 11. Nfd2 {[%clk 0:08:29.6]}
11... Nxd2 {[%clk 0:08:57.6]} 12. Qxd2 {[%clk 0:08:20.4]} 12... Nd7 {[%clk
0:08:39.2]} 13. Nc3 {[%clk 0:08:19.1]} 13... Bb7 {[%clk 0:08:36.2]} 14. d5
{[%clk 0:07:55.9]} 14... c6 {[%clk 0:08:07.7]} 15. dxc6 {[%clk 0:07:52.5]} 15...
Bxc6 {[%clk 0:08:09.6]} 16. Qe2 {[%clk 0:06:59]} 16... Ne5 {[%clk 0:07:19.8]}
17. Bc4+ {[%clk 0:06:49.7]} 17... Kh8 {[%clk 0:07:15.7]} 18. Rfd1 {[%clk
0:06:49.2]} 18... Qe8 {[%clk 0:05:41.1]} 19. Nd5 {[%clk 0:05:43.9]} 19... Nxc4
{[%clk 0:05:00.7]} 20. Bxg7+ {[%clk 0:05:42.1]} 20... Kxg7 {[%clk 0:05:01.1]}
21. Qxc4 {[%clk 0:05:07.9]} 21... Bxd5 {[%clk 0:03:39.3]} 22. Rxd5 {[%clk
0:05:09.8]} 22... Qf7 {[%clk 0:03:32]} 23. Rad1 {[%clk 0:04:45.1]} 23... Rac8
{[%clk 0:02:56.4]} 24. Qd4+ {[%clk 0:04:44.3]} 24... Qf6 {[%clk 0:02:56.5]} 25.
Re5 {[%clk 0:03:51.3]} 25... Rfd8 {[%clk 0:02:07.5]} 26. Rxe7+ {[%clk
0:03:47.9]} 26... Kh6 {[%clk 0:02:06.2]} 27. Rd7 {[%clk 0:03:15.6]} 27... Qxd4
{[%clk 0:01:47.5]} 28. R7xd4 {[%clk 0:03:17.5]} 28... Rxd4 {[%clk 0:01:48.6]}
29. exd4 {[%clk 0:03:18]} 29... Kg7 {[%clk 0:01:45.3]} 30. d5 {[%clk 0:02:25.9]}
30... Kf7 {[%clk 0:01:41.8]} 31. d6 {[%clk 0:02:22.6]} 31... Ke6 {[%clk
0:01:30.6]} 32. Kf1 {[%clk 0:02:14]} 32... Rd8 {[%clk 0:01:26.1]} 33. Ke2 {[%clk
0:02:14.6]} 33... Rxd6 {[%clk 0:01:26.4]} 34. Rc1 {[%clk 0:02:15.6]} 34... Rd7
{[%clk 0:01:22.3]} 35. Rc8 {[%clk 0:02:13.7]} 35... Ke5 {[%clk 0:01:13.5]} 36.
h4 {[%clk 0:02:00.9]} 36... f4 {[%clk 0:01:02.1]} 37. Kf3 {[%clk 0:01:38.2]}
37... Rd3+ {[%clk 0:01:00.4]} 38. Kg4 {[%clk 0:01:38.8]} 38... Rd2 {[%clk
0:00:52.5]} 39. Re8+ {[%clk 0:01:38.1]} 39... Kf6 {[%clk 0:00:50.5]} 40. Rf8+
{[%clk 0:01:27.8]} 40... Kg7 {[%clk 0:00:40.5]} 41. Rxf4 {[%clk 0:01:25]} 41...
Rxa2 {[%clk 0:00:40]} 42. g3 {[%clk 0:01:22]} 42... Ra3 {[%clk 0:00:33.3]} 43.
b4 {[%clk 0:01:17.2]} 43... a5 {[%clk 0:00:26.5]} 44. bxa5 {[%clk 0:01:04.8]}
44... bxa5 {[%clk 0:00:27.7]} 45. Rc4 {[%clk 0:01:05.3]} 45... Rb3 {[%clk
0:00:17.3]} 46. Rc7+ {[%clk 0:01:05.3]} 46... Kh6 {[%clk 0:00:17.1]} 47. Ra7
{[%clk 0:01:00.7]} 47... Rb4+ {[%clk 0:00:13.7]} 48. f4 {[%clk 0:00:46.2]} 48...
a4 {[%clk 0:00:14.7]} 49. Kh3 {[%clk 0:00:44.5]} 49... Rc4 {[%clk 0:00:15.5]}
50. g4 {[%clk 0:00:39]} 50... Rc3+ {[%clk 0:00:16.7]} 51. Kg2 {[%clk 0:00:40]}
51... Ra3 {[%clk 0:00:16]} 52. Kf2 {[%clk 0:00:38.9]} 52... Rh3 {[%clk
0:00:09.5]} 53. Rxa4 {[%clk 0:00:34.7]} 53... Rxh4 {[%clk 0:00:10.4]} 54. Kg3
{[%clk 0:00:34.4]} 54... Rh1 {[%clk 0:00:11.2]} 55. Ra7 {[%clk 0:00:35.2]} 55...
Rg1+ {[%clk 0:00:10.7]} 56. Kh3 {[%clk 0:00:33.8]} 56... Rh1+ {[%clk 0:00:10.6]}
57. Kg2 {[%clk 0:00:34.5]} 57... Rb1 {[%clk 0:00:10.7]} 58. Kg3 {[%clk
0:00:28.9]} 58... Rg1+ {[%clk 0:00:11.2]} 59. Kf3 {[%clk 0:00:28.6]} 59... Rf1+
{[%clk 0:00:11.6]} 60. Kg3 {[%clk 0:00:27.9]} 60... Rg1+ {[%clk 0:00:12.9]}
1/2-1/2

[Event "GrandPrix_29.05"]
[Site "Chess.com"]
[Date "2020.05.29"]
[Round "5"]
[White "NikolaN98"]
[Black "Luq27"]
[Result "1-0"]
[WhiteElo "2362"]
[BlackElo "2248"]
[TimeControl "600+2"]
[EndTime "11:33:28 PDT"]
[Termination "NikolaN98 won on time"]

1. e4 {[%clk 0:09:59.3]} 1... c5 {[%clk 0:09:44.9]} 2. Nc3 {[%clk 0:09:58.1]}
2... e6 {[%clk 0:09:45.4]} 3. f4 {[%clk 0:09:57.3]} 3... a6 {[%clk 0:09:45.3]}
4. Nf3 {[%clk 0:09:57.9]} 4... Nc6 {[%clk 0:09:36.2]} 5. g3 {[%clk 0:09:58.2]}
5... d5 {[%clk 0:09:37]} 6. d3 {[%clk 0:09:55]} 6... dxe4 {[%clk 0:09:33.9]} 7.
dxe4 {[%clk 0:09:48.1]} 7... Qxd1+ {[%clk 0:09:33.5]} 8. Nxd1 {[%clk 0:09:48.3]}
8... b6 {[%clk 0:09:23.9]} 9. c3 {[%clk 0:09:30.5]} 9... Bb7 {[%clk 0:09:24]}
10. Nf2 {[%clk 0:09:30.5]} 10... f6 {[%clk 0:08:35.9]} 11. Be3 {[%clk 0:09:22]}
11... Bd6 {[%clk 0:08:32.5]} 12. Bh3 {[%clk 0:09:16.2]} 12... Ke7 {[%clk
0:08:25]} 13. O-O-O {[%clk 0:09:13.3]} 13... Nh6 {[%clk 0:08:22.4]} 14. Rhe1
{[%clk 0:08:19.7]} 14... Bc7 {[%clk 0:08:05.1]} 15. g4 {[%clk 0:06:44.7]} 15...
Rad8 {[%clk 0:07:52.6]} 16. g5 {[%clk 0:06:34.4]} 16... Nf7 {[%clk 0:07:40]} 17.
Rxd8 {[%clk 0:05:49.8]} 17... Rxd8 {[%clk 0:07:38.6]} 18. gxf6+ {[%clk
0:05:50.3]} 18... gxf6 {[%clk 0:07:39.1]} 19. Rg1 {[%clk 0:05:47.7]} 19... Rh8
{[%clk 0:07:21.9]} 20. Nh4 {[%clk 0:05:04.1]} 20... Nb8 {[%clk 0:06:21.3]} 21.
Kd2 {[%clk 0:04:13.5]} 21... Nd7 {[%clk 0:06:09.9]} 22. Ke2 {[%clk 0:04:11.2]}
22... Bc6 {[%clk 0:06:00.4]} 23. Rg7 {[%clk 0:03:59.1]} 23... Kf8 {[%clk
0:05:45.4]} 24. Rg1 {[%clk 0:03:59.4]} 24... Ke7 {[%clk 0:05:46.1]} 25. Bc1
{[%clk 0:03:28.6]} 25... Bb7 {[%clk 0:04:44]} 26. Rg7 {[%clk 0:03:27.6]} 26...
Kf8 {[%clk 0:04:41.9]} 27. Rg3 {[%clk 0:03:28.1]} 27... Ke7 {[%clk 0:04:40.2]}
28. Bg4 {[%clk 0:03:27.1]} 28... Rg8 {[%clk 0:04:32.7]} 29. Bh5 {[%clk
0:03:24.8]} 29... Rxg3 {[%clk 0:04:26.4]} 30. hxg3 {[%clk 0:03:26.7]} 30... Nd6
{[%clk 0:04:26.2]} 31. Bf3 {[%clk 0:03:21.8]} 31... Nf7 {[%clk 0:04:10.1]} 32.
b3 {[%clk 0:03:19.5]} 32... Nf8 {[%clk 0:04:05.2]} 33. c4 {[%clk 0:02:50.7]}
33... Nd7 {[%clk 0:03:48.6]} 34. Bb2 {[%clk 0:02:49.7]} 34... Nb8 {[%clk
0:03:48.6]} 35. Ng4 {[%clk 0:02:38.9]} 35... Nd7 {[%clk 0:03:49.2]} 36. Ng2
{[%clk 0:02:23.8]} 36... Nd8 {[%clk 0:03:43.6]} 37. N2e3 {[%clk 0:01:59.1]}
37... Nc6 {[%clk 0:03:37]} 38. Nc2 {[%clk 0:01:58.6]} 38... e5 {[%clk
0:03:26.6]} 39. Nce3 {[%clk 0:01:10.6]} 39... Nd4+ {[%clk 0:03:15.5]} 40. Bxd4
{[%clk 0:01:09.4]} 40... cxd4 {[%clk 0:03:03.3]} 41. Nf5+ {[%clk 0:01:01.6]}
41... Kf7 {[%clk 0:02:33.8]} 42. Ngh6+ {[%clk 0:00:49.7]} 42... Kg6 {[%clk
0:02:27.3]} 43. Ng8 {[%clk 0:00:38.9]} 43... exf4 {[%clk 0:02:06.2]} 44. gxf4
{[%clk 0:00:37.7]} 44... Bxf4 {[%clk 0:02:08.1]} 45. Nge7+ {[%clk 0:00:35.8]}
45... Kf7 {[%clk 0:01:59.5]} 46. Nd5 {[%clk 0:00:16.9]} 46... Be5 {[%clk
0:01:51.4]} 47. b4 {[%clk 0:00:10.6]} 47... a5 {[%clk 0:01:39.6]} 48. a3 {[%clk
0:00:11.2]} 48... axb4 {[%clk 0:01:39]} 49. axb4 {[%clk 0:00:12.5]} 49... Bxd5
{[%clk 0:00:12.7]} 50. Bh5+ {[%clk 0:00:10.9]} 50... Kf8 {[%clk 0:00:08.2]} 51.
cxd5 {[%clk 0:00:12.5]} 51... Nb8 {[%clk 0:00:06.1]} 52. Kd3 {[%clk 0:00:10.9]}
52... Na6 {[%clk 0:00:05.9]} 53. Kc4 {[%clk 0:00:12]} 53... d3 {[%clk
0:00:07.2]} 54. Kb5 {[%clk 0:00:09.3]} 1-0

[Event "GrandPrix_29.05"]
[Site "Chess.com"]
[Date "2020.05.29"]
[Round "5"]
[White "caspiwins"]
[Black "Kezin_Roman"]
[Result "0-1"]
[WhiteElo "2371"]
[BlackElo "2647"]
[TimeControl "600+2"]
[EndTime "11:33:34 PDT"]
[Termination "Kezin_Roman won by resignation"]

1. e4 {[%clk 0:10:01.3]} 1... c5 {[%clk 0:09:56.4]} 2. Nf3 {[%clk 0:10:00.9]}
2... e6 {[%clk 0:09:52.5]} 3. d4 {[%clk 0:09:59.7]} 3... cxd4 {[%clk 0:09:54.4]}
4. Nxd4 {[%clk 0:10:00.9]} 4... Nc6 {[%clk 0:09:55.1]} 5. Nc3 {[%clk 0:09:59.5]}
5... Qc7 {[%clk 0:09:55.9]} 6. Be3 {[%clk 0:09:59.1]} 6... a6 {[%clk 0:09:56.2]}
7. Qd2 {[%clk 0:09:56.9]} 7... Nf6 {[%clk 0:09:54.7]} 8. O-O-O {[%clk
0:09:56.2]} 8... Be7 {[%clk 0:09:50.7]} 9. f3 {[%clk 0:09:47.8]} 9... b5 {[%clk
0:09:50.1]} 10. Kb1 {[%clk 0:09:32.2]} 10... Bb7 {[%clk 0:09:47.7]} 11. Bf4
{[%clk 0:09:25.8]} 11... e5 {[%clk 0:09:39.4]} 12. Nf5 {[%clk 0:09:21.4]} 12...
exf4 {[%clk 0:09:35.6]} 13. Nd5 {[%clk 0:09:22.1]} 13... Nxd5 {[%clk 0:09:24.9]}
14. exd5 {[%clk 0:09:24]} 14... Nb4 {[%clk 0:09:25.9]} 15. c4 {[%clk 0:08:49.8]}
15... Bd6 {[%clk 0:08:54.7]} 16. a3 {[%clk 0:07:17.1]} 16... a5 {[%clk 0:08:04]}
17. axb4 {[%clk 0:06:19]} 17... O-O {[%clk 0:07:38.4]} 18. Nxd6 {[%clk
0:06:03.3]} 18... Qxd6 {[%clk 0:07:38]} 19. c5 {[%clk 0:06:03.8]} 19... Qg6+
{[%clk 0:04:54.8]} 20. Bd3 {[%clk 0:05:56.6]} 20... Qa6 {[%clk 0:04:56.2]} 21.
bxa5 {[%clk 0:05:15.8]} 21... Qxa5 {[%clk 0:04:51.9]} 22. Qxa5 {[%clk
0:04:54.9]} 22... Rxa5 {[%clk 0:04:53.8]} 23. Bf5 {[%clk 0:03:07]} 23... b4
{[%clk 0:04:52.3]} 24. Bxd7 {[%clk 0:03:00.1]} 24... Rxc5 {[%clk 0:04:52.8]} 25.
d6 {[%clk 0:03:01.2]} 25... Rd8 {[%clk 0:04:02.6]} 26. Rhe1 {[%clk 0:02:55.7]}
26... Kf8 {[%clk 0:04:02.9]} 27. Ba4 {[%clk 0:02:53]} 27... Bc6 {[%clk
0:03:58.3]} 28. Bb3 {[%clk 0:02:35.7]} 28... Bd7 {[%clk 0:03:58.8]} 29. Bc2
{[%clk 0:02:09.4]} 29... Be6 {[%clk 0:03:53.4]} 30. Rd4 {[%clk 0:01:58.2]} 30...
b3 {[%clk 0:03:32.2]} 31. Be4 {[%clk 0:01:48.3]} 31... g6 {[%clk 0:02:57.6]} 32.
Rc1 {[%clk 0:01:47.2]} 32... Rxc1+ {[%clk 0:02:47.3]} 33. Kxc1 {[%clk
0:01:48.1]} 33... Kg7 {[%clk 0:02:49.2]} 34. Bd3 {[%clk 0:01:08.6]} 34... g5
{[%clk 0:02:27.4]} 35. Kd2 {[%clk 0:01:08.9]} 35... Kf6 {[%clk 0:02:24.9]} 36.
Bxh7 {[%clk 0:00:58.2]} 36... Ke5 {[%clk 0:02:20.5]} 37. Re4+ {[%clk 0:00:59]}
37... Kd5 {[%clk 0:02:00.7]} 38. Rb4 {[%clk 0:00:51.6]} 38... Kc5 {[%clk
0:01:55.1]} 39. Kc3 {[%clk 0:00:45.2]} 39... Rxd6 {[%clk 0:01:55.1]} 40. Ra4
{[%clk 0:00:38.3]} 40... Rc6 {[%clk 0:00:59.1]} 41. Bd3 {[%clk 0:00:37.4]} 41...
Kd6+ {[%clk 0:00:08.5]} 42. Kd2 {[%clk 0:00:36.3]} 42... Ke5 {[%clk 0:00:07.5]}
43. Re4+ {[%clk 0:00:31.7]} 43... Kf6 {[%clk 0:00:08.2]} 44. Rb4 {[%clk
0:00:33]} 44... Rc7 {[%clk 0:00:07.4]} 45. h4 {[%clk 0:00:31.5]} 45... gxh4
{[%clk 0:00:06.8]} 46. Rxf4+ {[%clk 0:00:31.9]} 46... Kg5 {[%clk 0:00:08.3]} 47.
Rd4 {[%clk 0:00:25.1]} 47... Rc8 {[%clk 0:00:08.9]} 48. Rb4 {[%clk 0:00:10.2]}
48... Kh5 {[%clk 0:00:09.3]} 49. Rb5+ {[%clk 0:00:08]} 49... Kh6 {[%clk
0:00:10.5]} 50. Ke3 {[%clk 0:00:07.9]} 50... Rc1 {[%clk 0:00:09.6]} 51. Kd2
{[%clk 0:00:06.7]} 51... Rg1 {[%clk 0:00:10.1]} 52. Kc3 {[%clk 0:00:07.2]} 52...
Rxg2 {[%clk 0:00:10.9]} 53. Rb4 {[%clk 0:00:06.3]} 53... h3 {[%clk 0:00:11.4]}
54. f4 {[%clk 0:00:06.8]} 54... h2 {[%clk 0:00:10.8]} 55. f5 {[%clk 0:00:08.1]}
55... h1=Q {[%clk 0:00:10.3]} 56. fxe6 {[%clk 0:00:09]} 56... Qe1+ {[%clk
0:00:11.3]} 57. Kxb3 {[%clk 0:00:10.2]} 57... Qxe6+ {[%clk 0:00:12.6]} 58. Bc4
{[%clk 0:00:11.6]} 58... Rg3+ {[%clk 0:00:13.8]} 59. Ka4 {[%clk 0:00:13]} 59...
Qc6+ {[%clk 0:00:14.7]} 60. Bb5 {[%clk 0:00:14]} 60... Qa8+ {[%clk 0:00:15.8]}
0-1

[Event "GrandPrix_29.05"]
[Site "Chess.com"]
[Date "2020.05.29"]
[Round "5"]
[White "JonahWillow"]
[Black "Winawer81"]
[Result "1/2-1/2"]
[WhiteElo "2255"]
[BlackElo "2149"]
[TimeControl "600+2"]
[EndTime "11:33:39 PDT"]
[Termination "Game drawn by repetition"]

1. e4 {[%clk 0:10:01.9]} 1... d5 {[%clk 0:09:59.6]} 2. Nc3 {[%clk 0:10:01.9]}
2... d4 {[%clk 0:09:59.1]} 3. Nce2 {[%clk 0:10:01.5]} 3... e5 {[%clk 0:09:59.3]}
4. Ng3 {[%clk 0:10:00.1]} 4... Be6 {[%clk 0:09:45.1]} 5. c3 {[%clk 0:09:59.7]}
5... c5 {[%clk 0:09:38.3]} 6. Bb5+ {[%clk 0:10:00.2]} 6... Nc6 {[%clk
0:09:36.6]} 7. Nf3 {[%clk 0:09:58.8]} 7... Bd6 {[%clk 0:09:32]} 8. Qe2 {[%clk
0:09:48.3]} 8... Ne7 {[%clk 0:09:25.2]} 9. Ng5 {[%clk 0:09:24.6]} 9... Qd7
{[%clk 0:09:08]} 10. Nxe6 {[%clk 0:07:58.6]} 10... fxe6 {[%clk 0:08:57.2]} 11.
Nh5 {[%clk 0:07:29.4]} 11... O-O {[%clk 0:08:32.4]} 12. Qg4 {[%clk 0:07:21]}
12... Ng6 {[%clk 0:08:31.8]} 13. d3 {[%clk 0:07:17.4]} 13... Rae8 {[%clk
0:08:08.2]} 14. O-O {[%clk 0:07:03.9]} 14... a6 {[%clk 0:08:00.8]} 15. Ba4
{[%clk 0:06:52.6]} 15... b5 {[%clk 0:07:51.4]} 16. Bc2 {[%clk 0:06:52.7]} 16...
c4 {[%clk 0:07:38]} 17. Bg5 {[%clk 0:06:38.1]} 17... Bc5 {[%clk 0:07:19.8]} 18.
Rad1 {[%clk 0:06:33]} 18... Rf7 {[%clk 0:06:53.4]} 19. Kh1 {[%clk 0:06:06.2]}
19... Ref8 {[%clk 0:06:46.7]} 20. f3 {[%clk 0:05:55.4]} 20... Be7 {[%clk
0:06:14.7]} 21. dxc4 {[%clk 0:03:39.9]} 21... bxc4 {[%clk 0:06:13.6]} 22. b3
{[%clk 0:03:38.8]} 22... Bxg5 {[%clk 0:05:34]} 23. Qxg5 {[%clk 0:03:40.7]} 23...
Nf4 {[%clk 0:05:31.5]} 24. Nxf4 {[%clk 0:03:26.5]} 24... Rxf4 {[%clk 0:05:22.7]}
25. bxc4 {[%clk 0:03:27.8]} 25... Qd6 {[%clk 0:04:45.8]} 26. Ba4 {[%clk
0:03:19.5]} 26... h6 {[%clk 0:03:19.9]} 27. Qh5 {[%clk 0:03:09.2]} 27... Qc5
{[%clk 0:02:58.1]} 28. Bxc6 {[%clk 0:03:04.9]} 28... Qxc6 {[%clk 0:02:58.6]} 29.
Qxe5 {[%clk 0:02:46.6]} 29... Qxc4 {[%clk 0:02:49.5]} 30. cxd4 {[%clk
0:02:44.3]} 30... Qxa2 {[%clk 0:02:47]} 31. d5 {[%clk 0:02:42.4]} 31... exd5
{[%clk 0:02:45]} 32. Qxd5+ {[%clk 0:02:36]} 32... Qxd5 {[%clk 0:02:42]} 33. Rxd5
{[%clk 0:02:37.9]} 33... Rxe4 {[%clk 0:02:40.3]} 34. Ra1 {[%clk 0:02:22.6]}
34... Re6 {[%clk 0:02:34]} 35. Rda5 {[%clk 0:02:14.7]} 35... Rff6 {[%clk
0:02:32.1]} 36. h3 {[%clk 0:02:07.2]} 36... Rg6 {[%clk 0:02:21.3]} 37. R1a2
{[%clk 0:02:02.3]} 37... Rb6 {[%clk 0:02:17]} 38. Kh2 {[%clk 0:02:02.8]} 38...
Rgc6 {[%clk 0:02:16.8]} 39. Kg3 {[%clk 0:02:03.5]} 39... Kf7 {[%clk 0:02:17.3]}
40. Kf4 {[%clk 0:02:04.4]} 40... Rb4+ {[%clk 0:02:03.6]} 41. Ke5 {[%clk
0:01:55.3]} 41... Rb5+ {[%clk 0:01:58.2]} 42. Rxb5 {[%clk 0:01:56.3]} 42... axb5
{[%clk 0:01:58.5]} 43. Kd5 {[%clk 0:01:55.5]} 43... Rg6 {[%clk 0:01:47]} 44. Kc5
{[%clk 0:01:52.8]} 44... Rg5+ {[%clk 0:01:44.5]} 45. Kb4 {[%clk 0:01:54.4]}
45... h5 {[%clk 0:01:41.5]} 46. Re2 {[%clk 0:01:37.9]} 46... Rd5 {[%clk
0:01:17]} 47. Re4 {[%clk 0:00:57]} 47... Kf6 {[%clk 0:01:08.3]} 48. g4 {[%clk
0:00:53.1]} 48... h4 {[%clk 0:01:00.1]} 49. Re8 {[%clk 0:00:47.9]} 49... g5
{[%clk 0:00:26.6]} 50. Rf8+ {[%clk 0:00:38.1]} 50... Ke5 {[%clk 0:00:26]} 51.
Rf7 {[%clk 0:00:06.1]} 51... Kd4 {[%clk 0:00:26.2]} 52. Rf8 {[%clk 0:00:04.5]}
52... Ke3 {[%clk 0:00:26.4]} 53. Rf5 {[%clk 0:00:06]} 53... Kd4 {[%clk 0:00:21]}
54. Rf8 {[%clk 0:00:07.1]} 54... Re5 {[%clk 0:00:20.6]} 55. Rf7 {[%clk
0:00:05.8]} 55... Kd3 {[%clk 0:00:19.9]} 56. Rf5 {[%clk 0:00:06.8]} 56... Kd4
{[%clk 0:00:20.4]} 57. Rf8 {[%clk 0:00:08]} 57... Kd5 {[%clk 0:00:20.1]} 58. Rf7
{[%clk 0:00:07.3]} 58... Ke6 {[%clk 0:00:20.5]} 59. Rf8 {[%clk 0:00:08.9]} 59...
Rd5 {[%clk 0:00:19.4]} 60. Rg8 {[%clk 0:00:07.3]} 60... Kf6 {[%clk 0:00:19.4]}
61. Rf8+ {[%clk 0:00:08.6]} 61... Ke5 {[%clk 0:00:19.7]} 62. Rf5+ {[%clk
0:00:09.9]} 62... Ke6 {[%clk 0:00:20.2]} 63. Rf8 {[%clk 0:00:11.8]} 63... Ke5
{[%clk 0:00:20.7]} 1/2-1/2